bitfinex-derivatives/quotes_SOLF0:USTF0_20250706
["timestamp","ask_amount","ask_price","bid_price","bid_amount"]
[1751825376097,48.56553522,152.25,152.19,6.5695]
[1751825376299,4.48525242,152.24,152.19,6.5695]
[1751825376502,6.5686,152.22,152.19,6.5695]
[1751825377598,48.56553522,152.25,152.18,3.86553522]
[1751825377798,4.48774984,152.24,152.18,3.86553522]
[1751825378004,48.56553522,152.25,152.18,3.86553522]
[1751825378203,4.48774986,152.24,152.18,3.86553522]
[1751825378501,4.50987467,152.23,152.18,3.86553522]
[1751825378701,48.56553522,152.25,152.18,3.86553522]
[1751825378903,4.5091585,152.24,152.18,3.86553522]
[1751825379097,48.56553522,152.25,152.18,3.86553522]
[1751825379292,4.5092761,152.24,152.18,3.86553522]
[1751825379493,6.5684,152.23,152.2,6.569]
[1751825381804,6.5685,152.22,152.19,6.5695]
[1751825382001,48.56553522,152.25,152.18,3.86553522]
[1751825382206,12.86526616,152.24,152.18,3.86553522]
[1751825382405,6.5687,152.22,152.19,6.5697]
[1751825382605,4.53290874,152.21,152.19,6.5697]
[1751825382902,6.5689,152.21,152.19,6.5697]
[1751825385207,4.53494374,152.2,152.19,6.5697]
[1751825385503,6.5689,152.21,152.19,6.5697]
[1751825385708,4.53462523,152.2,152.19,6.5697]
[1751825387309,6.5686,152.22,152.19,6.5697]
[1751825387511,4.53442697,152.21,152.19,6.5697]
[1751825387712,6.5686,152.22,152.19,6.5697]
[1751825387913,4.53442697,152.21,152.19,6.5697]
[1751825388209,6.5686,152.22,152.19,6.5697]
[1751825388407,4.53439037,152.21,152.19,6.5697]
[1751825388606,6.5686,152.22,152.19,6.5697]
[1751825388907,4.53467921,152.21,152.19,6.5697]
[1751825389115,6.5686,152.22,152.19,6.5697]
[1751825389307,4.53467594,152.21,152.2,6.5693]
[1751825390811,4.53467594,152.21,152.2,9.04309674]
[1751825392016,6.5685,152.22,152.2,9.04309674]
[1751825394614,6.5683,152.23,152.2,9.04309674]
[1751825394814,4.50070592,152.22,152.2,9.04309674]
[1751825395017,4.50070592,152.21,152.2,9.04309674]
[1751825395614,4.50069711,152.21,152.2,9.04309674]
[1751825398114,6.5683,152.23,152.2,9.04309674]
[1751825398314,4.52284224,152.22,152.2,9.04309674]
[1751825398508,6.5683,152.23,152.2,9.04309674]
[1751825398706,4.52291579,152.22,152.2,9.04309674]
[1751825398911,6.5683,152.23,152.2,9.04309674]
[1751825399113,4.52300809,152.22,152.2,9.04309674]
[1751825399410,6.5683,152.23,152.2,9.04309674]
[1751825399605,4.52308605,152.22,152.2,9.04309674]
[1751825399804,6.5683,152.23,152.2,9.04309674]
[1751825400016,4.52308605,152.22,152.2,9.04309674]
[1751825400315,6.5683,152.23,152.2,9.04309674]
[1751825400520,4.5230946,152.22,152.2,9.04309674]
[1751825400821,4.52348031,152.21,152.2,9.04309674]
[1751825401212,4.52553194,152.21,152.2,9.04309674]
[1751825401922,4.52553194,152.21,152.19,6.5696]
[1751825402124,6.5685,152.22,152.2,2.47379674]
[1751825402425,4.5249076,152.21,152.2,2.47379674]
[1751825403723,4.5249076,152.21,152.2,9.04309674]
[1751825405925,44.7,152.25,152.22,6.568]
[1751825406222,2.47379674,152.28,152.24,2.47379674]
[1751825406420,17.29400997,152.27,152.25,2.47379674]
[1751825406623,12.86938763,152.26,152.25,2.47379674]
[1751825407225,12.86909515,152.26,152.25,2.47379674]
[1751825407626,4.52474791,152.26,152.25,2.47379674]
[1751825410523,4.52474791,152.26,152.25,9.04089674]
[1751825412024,4.52474791,152.26,152.25,2.47379674]
[1751825415128,4.52474791,152.26,152.24,6.5675]
[1751825415328,6.5663,152.27,152.25,2.47379674]
[1751825415628,4.5596915,152.26,152.25,2.47379674]
[1751825420133,4.5596915,152.26,152.24,6.5675]
[1751825420331,6.5663,152.27,152.25,2.47379674]
[1751825420534,4.55744803,152.26,152.25,2.47379674]
[1751825420729,4.55744803,152.26,152.24,9.04129674]
[1751825421026,4.55744803,152.25,152.24,9.04129674]
[1751825423736,6.5663,152.27,152.24,9.04129674]
[1751825423937,4.55576873,152.26,152.25,2.47379674]
[1751825426036,4.55576873,152.26,152.24,6.5675]
[1751825426226,6.5663,152.27,152.25,2.47379674]
[1751825426433,4.55461641,152.26,152.25,2.47379674]
[1751825428137,4.55801201,152.26,152.25,2.47379674]
[1751825428638,4.55789533,152.26,152.25,2.47379674]
[1751825432343,4.55789533,152.26,152.25,9.04089674]
[1751825432545,44.66,152.29,152.25,2.47379674]
[1751825432738,4.56059866,152.28,152.26,2.47379674]
[1751825432939,4.56059866,152.27,152.26,9.04049674]
[1751825434442,4.56034923,152.27,152.26,9.04049674]
[1751825438055,4.56034923,152.27,152.25,2.47379674]
[1751825438254,4.56034923,152.26,152.25,2.47379674]
[1751825438454,4.56034923,152.26,152.25,2.47221259]
[1751825444063,4.56034923,152.26,152.25,9.03931259]
[1751825445349,4.56050896,152.26,152.25,9.03931259]
[1751825445550,4.56069513,152.26,152.25,9.0387622]
[1751825446160,6.5659,152.28,152.25,9.0387622]
[1751825446358,6.5659,152.28,152.26,2.4716622]
[1751825446555,4.56056298,152.27,152.26,2.4716622]
[1751825446954,6.5659,152.28,152.26,2.4716622]
[1751825447155,4.56082022,152.27,152.26,2.4716622]
[1751825447358,4.56201042,152.27,152.26,2.4716622]
[1751825449462,6.5659,152.28,152.26,2.4716622]
[1751825449664,4.56516028,152.27,152.26,2.4716622]
[1751825449960,4.56516028,152.27,152.26,9.0383622]
[1751825451366,44.66,152.29,152.26,9.0383622]
[1751825451665,4.35961336,152.28,152.27,2.4716622]
[1751825452665,4.35986092,152.28,152.27,2.4716622]
[1751825461168,4.36514801,152.28,152.27,2.4716622]
[1751825461871,6.5655,152.29,152.27,2.4716622]
[1751825464370,6.5655,152.29,152.27,9.0378622]
[1751825465668,44.58,152.32,152.29,6.5653]
[1751825465966,8.41447445,152.31,152.24,2.1994]
[1751825466169,200.10605769,152.35,152.3,2.4716622]
[1751825466360,12.7800617,152.34,152.32,2.4716622]
[1751825466558,12.7800617,152.33,152.32,2.4716622]
[1751825466759,12.77847458,152.33,152.32,9.0357622]
[1751825466964,8.4147725,152.33,152.32,9.0357622]
[1751825467163,8.4147725,152.33,152.32,2.4716622]
[1751825467371,4.36447286,152.33,152.31,2.4716622]
[1751825467565,2.4716622,152.35,152.31,2.4716622]
[1751825467770,12.77788384,152.34,152.31,2.4716622]
[1751825468072,2.4716622,152.35,152.31,2.4716622]
[1751825468073,4.36285533,152.33,152.31,2.4716622]
[1751825468259,2.4716622,152.35,152.31,2.4716622]
[1751825468464,10.92504976,152.34,152.31,9.0361622]
[1751825468664,4.36154976,152.33,152.31,9.0361622]
[1751825468963,6.5635,152.34,152.31,9.0361622]
[1751825469163,4.36038507,152.33,152.31,9.0361622]
[1751825469368,9.0351622,152.34,152.31,9.0361622]
[1751825469665,4.35931791,152.33,152.31,9.0361622]
[1751825469865,6.5637,152.33,152.31,2.4716622]
[1751825470362,6.5641,152.32,152.3,2.4716622]
[1751825470564,6.5641,152.32,152.29,9.0369622]
[1751825471270,9.0355622,152.33,152.3,6.565]
[1751825476074,9.0355622,152.33,152.3,9.0366622]
[1751825477169,6.5639,152.33,152.3,9.0366622]
[1751825477771,6.5639,152.33,152.31,2.4716622]
[1751825482278,6.5639,152.33,152.31,9.0361622]
[1751825482577,6.5636,152.34,152.31,9.0361622]
[1751825482776,4.38862142,152.33,152.31,9.0361622]
[1751825482974,6.5636,152.34,152.31,9.0361622]
[1751825483176,4.38862142,152.33,152.31,9.0361622]
[1751825483377,6.5636,152.34,152.31,9.0361622]
[1751825483679,4.38910097,152.33,152.31,9.0361622]
[1751825483877,6.5636,152.34,152.32,2.4716622]
[1751825491677,6.5637,152.33,152.32,2.4716622]
[1751825491885,2.4716622,152.35,152.32,2.4716622]
[1751825492078,4.42612279,152.34,152.32,2.4716622]
[1751825492277,6.5637,152.34,152.32,2.4716622]
[1751825493085,4.42726727,152.33,152.32,2.4716622]
[1751825493283,4.42726727,152.33,152.32,9.0357622]
[1751825493682,6.563,152.35,152.32,9.0357622]
[1751825493884,4.42747865,152.34,152.33,2.4716622]
[1751825495382,4.42747865,152.34,152.33,9.0353622]
[1751825496184,51.1421,152.37,152.33,9.0353622]
[1751825496381,12.89764569,152.36,152.34,2.4716622]
[1751825496683,12.89764569,152.35,152.34,2.4716622]
[1751825497383,12.89888649,152.35,152.34,2.4716622]
[1751825504590,4.44048126,152.35,152.34,2.4716622]
[1751825511292,12.92574808,152.35,152.34,2.4716622]
[1751825512592,12.94274094,152.35,152.34,2.4716622]
[1751825513394,4.45747412,152.35,152.34,2.4716622]
[1751825514694,4.45747412,152.35,152.34,9.0349622]
[1751825519498,2.4716622,152.38,152.34,9.0349622]
[1751825519797,12.95048713,152.37,152.35,2.4716622]
[1751825520098,12.95048713,152.36,152.35,2.4716622]
[1751825520894,15.42214933,152.36,152.29,2.215]
[1751825521098,2.4716622,152.33,152.29,2.4716622]
[1751825521300,12.75720637,152.32,152.29,2.4716622]
[1751825521501,12.75720637,152.31,152.29,2.4716622]
[1751825521695,8.48199767,152.3,152.29,2.4716622]
[1751825521895,2.4716622,152.33,152.29,2.4716622]
[1751825522196,19.19923191,152.32,152.29,9.0367622]
[1751825522389,12.63513191,152.31,152.29,9.0367622]
[1751825522591,6.5641,152.32,152.3,2.4716622]
[1751825531310,6.5639,152.33,152.3,9.0366622]
[1751825531617,6.5639,152.33,152.31,2.4716622]
[1751825533922,6.5641,152.32,152.31,2.4716622]
[1751825534625,6.5641,152.32,152.3,2.4716622]
[1751825534923,6.5641,152.32,152.31,2.4716622]
[1751825536418,6.5639,152.33,152.31,2.4716622]
[1751825541725,6.5641,152.32,152.31,2.4716622]
[1751825543127,6.5646,152.31,152.3,2.4716622]
[1751825543320,6.5646,152.31,152.28,6.5658]
[1751825543527,6.5646,152.31,152.28,9.0374622]
[1751825544626,6.5646,152.31,152.29,2.4716622]
[1751825544924,2.4716622,152.31,152.26,6.5663]
[1751825545124,8.29558452,152.3,152.28,2.4716622]
[1751825545326,2.4716622,152.31,152.28,2.4716622]
[1751825545520,14.85973446,152.3,152.28,2.4716622]
[1751825545722,6.5652,152.3,152.28,2.4716622]
[1751825546323,8.28477538,152.29,152.23,46.7857]
[1751825546518,2.4716622,152.3,152.26,9.0383622]
[1751825546725,8.28475124,152.29,152.26,9.0383622]
[1751825546928,2.4716622,152.3,152.26,9.0383622]
[1751825547129,8.28475124,152.29,152.26,9.0383622]
[1751825547330,8.2824383,152.28,152.27,2.4716622]
[1751825547721,6.5654,152.3,152.27,2.4716622]
[1751825547926,8.28322992,152.29,152.27,2.4716622]
[1751825548125,6.5654,152.3,152.27,2.4716622]
[1751825548326,8.28322993,152.29,152.28,2.4716622]
[1751825549222,8.28113737,152.29,152.28,2.4716622]
[1751825549428,14.84653737,152.29,152.28,2.4716622]
[1751825549627,14.84653737,152.29,152.27,2.4716622]
[1751825549827,6.5654,152.29,152.27,2.4716622]
[1751825550632,6.5659,152.28,152.25,9.0386622]
[1751825551926,8.26214421,152.27,152.25,9.0386622]
[1751825552236,6.5659,152.28,152.25,9.0386622]
[1751825552541,14.82673926,152.27,152.24,9.0390622]
[1751825552835,2.4716622,152.27,152.24,2.4716622]
[1751825553036,6.5676,152.24,152.22,2.4716622]
[1751825553437,2.4716622,152.26,152.22,2.4716622]
[1751825553638,6.5674,152.25,152.22,9.0399622]
[1751825554833,6.5674,152.25,152.23,2.4716622]
[1751825556637,6.5676,152.24,152.23,2.4716622]
[1751825557938,6.5676,152.24,152.22,2.4716622]
[1751825561643,6.5672,152.25,152.22,9.0400622]
[1751825561843,6.5672,152.25,152.23,2.4716622]
[1751825569148,6.5672,152.25,152.22,9.0400622]
[1751825570449,6.5676,152.24,152.22,2.4716622]
[1751825572250,6.5673,152.25,152.22,9.0400622]
[1751825574847,44.54,152.3,152.22,2.4716622]
[1751825575047,2.4716622,152.28,152.24,2.4716622]
[1751825575354,2.4716622,152.28,152.25,2.4716622]
[1751825575649,6.5665,152.27,152.25,2.4716622]
[1751825575850,6.5665,152.27,152.24,9.0391622]
[1751825578961,2.4716622,152.27,152.22,6.5683]
[1751825579163,2.4716622,152.26,152.22,2.4716622]
[1751825579648,6.5676,152.24,152.22,2.4716622]
[1751825581761,6.5676,152.24,152.21,9.0403622]
[1751825581962,6.568,152.23,152.19,44.54]
[1751825582156,2.4716622,152.24,152.2,2.4716622]
[1751825582855,2.4716622,152.24,152.21,2.4716622]
[1751825583661,2.4716622,152.24,152.2,9.0405622]
[1751825584159,2.4716622,152.24,152.2,2.4716622]
[1751825584362,6.5684,152.23,152.2,2.4716622]
[1751825584863,2.4716622,152.22,152.15,6.8533]
[1751825585054,2.4716622,152.21,152.15,6.8533]
[1751825585259,2.4716622,152.21,152.17,2.4716622]
[1751825585460,6.5693,152.21,152.17,9.0419622]
[1751825585661,2.4716622,152.21,152.17,9.0419622]
[1751825585865,2.2585,152.24,152.18,2.4716622]
[1751825586055,2.4716622,152.21,152.18,2.4716622]
[1751825586666,6.5696,152.2,152.18,2.4716622]
[1751825586862,6.5696,152.2,152.17,2.4716622]
[1751825587566,6.5696,152.2,152.17,9.0422622]
[1751825594567,6.5696,152.2,152.18,2.4716622]
[1751825596174,6.5696,152.2,152.17,9.0422622]
[1751825596770,6.5696,152.2,152.17,2.4716622]
[1751825596971,2.4716622,152.18,152.14,2.4716622]
[1751825597471,9.0420622,152.18,152.14,9.0432622]
[1751825599178,9.0420622,152.18,152.14,6.5716]
[1751825599381,9.0420622,152.18,152.14,9.0432622]
[1751825599573,2.4716622,152.18,152.16,6.5709]
[1751825599780,47.0316622,152.2,152.16,2.4716622]
[1751825601479,6.57,152.19,152.16,2.4716622]
[1751825601973,44.56,152.2,152.16,2.4716622]
[1751825602175,44.56,152.2,152.19,2.4716622]
[1751825602381,51.6264622,152.24,152.19,2.4716622]
[1751825602583,8.12040317,152.23,152.2,2.4716622]
[1751825602773,6.5684,152.22,152.2,2.4716622]
[1751825603978,44.56,152.24,152.21,2.4716622]
[1751825604184,44.56,152.24,152.22,2.4716622]
[1751825604779,44.56,152.24,152.21,6.5688]
[1751825605079,51.1278,152.24,152.21,6.5688]
[1751825605680,44.56,152.24,152.2,3.86439094]
[1751825605882,8.15658245,152.23,152.17,8.39959094]
[1751825606084,6.5688,152.22,152.18,6.5699]
[1751825609882,6.569,152.21,152.18,6.5699]
[1751825611689,6.569,152.21,152.17,14.97009094]
[1751825611986,6.569,152.21,152.17,12.61839094]
[1751825612888,6.569,152.21,152.17,10.43489094]
[1751825613491,6.569,152.21,152.18,6.5701]
[1751825618787,44.56,152.24,152.19,3.86439094]
[1751825618996,44.56,152.24,152.21,3.86439094]
[1751825619696,51.1277,152.24,152.21,10.43299094]
[1751825621897,571.26439094,152.27,152.22,6.5684]
[1751825622294,571.26439094,152.27,152.18,4.5003]
[1751825622295,567.4,152.27,152.23,3.86439094]
[1751825622494,44.56,152.28,152.23,3.86439094]
[1751825624093,44.56,152.28,152.23,10.43209094]
[1751825624589,6.5666,152.27,152.23,10.43209094]
[1751825624795,9.03919096,152.27,152.24,2.47259096]
[1751825625500,6.5667,152.26,152.24,2.47259096]
[1751825632504,6.5667,152.26,152.23,6.5677]
[1751825632700,6.5667,152.26,152.24,2.47259096]
[1751825639013,6.5672,152.25,152.22,6.5683]
[1751825639310,6.5672,152.25,152.23,2.47259096]
[1751825640408,6.5669,152.26,152.24,2.47259096]
[1751825642110,9.03899096,152.27,152.24,9.04019096]
[1751825642313,2.47259096,152.27,152.24,2.47259096]
[1751825643510,6.5668,152.26,152.24,2.47259096]
[1751825646912,9.03909096,152.27,152.24,2.47259096]
[1751825647413,9.03909096,152.27,152.24,9.04019096]
[1751825647604,6.5665,152.27,152.25,2.47259096]
[1751825648005,4.82919096,152.33,152.26,2.47259096]
[1751825648210,16.69114556,152.32,152.29,2.47259096]
[1751825648513,6.5654,152.3,152.27,9.03889096]
[1751825648706,6.5654,152.3,152.27,2.47259096]
[1751825648909,2.47259096,152.3,152.26,2.47259096]
[1751825649313,6.5657,152.29,152.26,2.47259096]
[1751825651009,6.5659,152.28,152.26,2.47259096]
[1751825651209,2.47259096,152.28,152.25,2.47259096]
[1751825651410,2.47259096,152.28,152.24,9.03999096]
[1751825651618,9.03919096,152.27,152.24,2.47259096]
[1751825651809,2.47259096,152.27,152.23,9.04039096]
[1751825652509,6.5668,152.26,152.23,9.04039096]
[1751825653415,6.5672,152.25,152.23,2.47259096]
[1751825653611,44.54,152.29,152.23,2.47259096]
[1751825656504,6.5663,152.27,152.24,6.5675]
[1751825657712,6.566,152.28,152.24,6.5675]
[1751825658318,6.5663,152.27,152.24,6.5675]
[1751825663319,8.2361565,152.26,152.24,6.5675]
[1751825663520,6.5663,152.27,152.24,6.5675]
[1751825663722,8.23571336,152.26,152.24,6.5675]
[1751825663914,6.5663,152.27,152.24,6.5675]
[1751825664115,8.23571336,152.26,152.24,6.5675]
[1751825664315,6.5663,152.27,152.24,6.5675]
[1751825664617,8.23678238,152.26,152.24,6.5675]
[1751825664911,6.5663,152.27,152.24,6.5675]
[1751825665115,8.2364473,152.26,152.24,6.5675]
[1751825665315,6.5663,152.27,152.24,6.5675]
[1751825665515,8.23736032,152.26,152.24,6.5675]
[1751825665720,6.5663,152.27,152.24,6.5675]
[1751825665921,8.23736289,152.26,152.24,6.5675]
[1751825666112,6.5663,152.27,152.24,6.5675]
[1751825667022,6.5663,152.27,152.2,44.54]
[1751825667023,8.23885342,152.26,152.2,48.40291504]
[1751825667326,8.23885342,152.25,152.2,48.40291504]
[1751825667624,44.54,152.29,152.22,3.86291504]
[1751825667925,16.77188951,152.28,152.22,3.86291504]
[1751825668123,18.92873896,152.27,152.23,6.5676]
[1751825668323,6.5665,152.27,152.23,6.5676]
[1751825668625,6.5665,152.27,152.24,6.5674]
[1751825668923,6.5665,152.27,152.24,3.86291504]
[1751825669724,6.5665,152.27,152.24,10.43031504]
[1751825673725,6.566,152.28,152.25,6.5671]
[1751825674130,6.566,152.28,152.24,3.86291504]
[1751825674430,6.566,152.28,152.25,6.5671]
[1751825675626,8.25136144,152.27,152.25,6.5671]
[1751825675827,6.566,152.28,152.25,6.5671]
[1751825676026,8.25136144,152.27,152.25,6.5671]
[1751825676332,6.566,152.28,152.25,6.5671]
[1751825676631,8.25143278,152.27,152.25,6.5671]
[1751825676828,6.566,152.28,152.26,2.47199338]
[1751825677128,8.2514328,152.27,152.26,2.47199338]
[1751825678228,44.54,152.29,152.26,2.47199338]
[1751825678428,6.8108,152.32,152.28,2.47199338]
[1751825678628,12.35571678,152.31,152.28,2.47199338]
[1751825678833,14.81663431,152.3,152.28,2.47199338]
[1751825679032,8.25133431,152.29,152.28,2.47199338]
[1751825683037,8.25133431,152.29,152.26,6.5664]
[1751825683237,6.5653,152.3,152.28,2.47199338]
[1751825683638,6.5653,152.3,152.27,2.47199338]
[1751825686739,6.5653,152.3,152.27,9.03829338]
[1751825688440,9.03669338,152.31,152.28,6.5658]
[1751825688637,8.27349406,152.3,152.28,9.03779338]
[1751825688843,6.5647,152.31,152.28,9.03779338]
[1751825689142,9.28279338,152.32,152.28,2.47199338]
[1751825689143,14.83849755,152.3,152.28,2.47199338]
[1751825689342,6.565,152.3,152.28,2.47199338]
[1751825692633,6.5647,152.31,152.28,9.03779338]
[1751825692840,8.26796582,152.3,152.28,9.03779338]
[1751825693139,6.5647,152.31,152.28,9.03779338]
[1751825693339,8.26796582,152.3,152.28,9.03779338]
[1751825693541,6.5647,152.31,152.28,9.03779338]
[1751825693733,8.26777764,152.3,152.28,9.03779338]
[1751825694039,6.5647,152.31,152.28,9.03779338]
[1751825694237,6.5643,152.32,152.29,9.03739338]
[1751825694439,8.26717257,152.31,152.29,9.03739338]
[1751825694732,6.5646,152.31,152.29,9.03739338]
[1751825695143,6.5646,152.31,152.3,2.47199338]
[1751825695337,14.83174536,152.31,152.3,2.47199338]
[1751825695739,14.83174536,152.31,152.29,9.03739338]
[1751825695939,6.5646,152.31,152.29,9.03739338]
[1751825698642,6.5646,152.31,152.3,2.47199338]
[1751825698843,14.83116806,152.31,152.3,2.47199338]
[1751825700345,8.26656806,152.31,152.3,2.47199338]
[1751825700546,6.5643,152.32,152.3,2.47199338]
[1751825702648,6.5643,152.32,152.29,9.03739338]
[1751825704444,6.5646,152.31,152.29,2.47199338]
[1751825705742,6.5646,152.31,152.3,2.47199338]
[1751825706540,6.5642,152.32,152.3,2.47199338]
[1751825706840,47.01199338,152.34,152.3,2.47199338]
[1751825707041,12.42383201,152.33,152.3,2.47199338]
[1751825707243,8.27269374,152.32,152.3,2.47199338]
[1751825707442,47.01199338,152.34,152.3,2.47199338]
[1751825707642,12.42236789,152.33,152.3,2.47199338]
[1751825707846,6.5646,152.31,152.3,2.47199338]
[1751825708347,6.5646,152.31,152.28,6.5657]
[1751825708644,6.5646,152.31,152.29,2.47199338]
[1751825712647,6.5646,152.31,152.3,2.47199338]
[1751825716152,6.5646,152.31,152.29,2.47199338]
[1751825718254,6.5643,152.32,152.29,9.03739338]
[1751825718854,6.5646,152.31,152.29,2.47199338]
[1751825722560,19.41052102,152.3,152.2,44.54]
[1751825722754,2.47199338,152.28,152.25,2.47199338]
[1751825722954,8.29451655,152.27,152.25,2.47199338]
[1751825723154,9.03809338,152.28,152.25,2.47199338]
[1751825723359,8.29242131,152.27,152.25,2.47199338]
[1751825723549,9.15725223,152.37,152.3,6.5647]
[1751825723749,63.9524989,152.36,152.32,2.47199338]
[1751825723953,19.4124989,152.35,152.31,2.47199338]
[1751825724158,16.94050552,152.34,152.31,2.47199338]
[1751825724458,19.02778575,152.33,152.31,2.47199338]
[1751825724658,8.29395381,152.32,152.31,2.47199338]
[1751825725360,14.85805381,152.32,152.31,2.47199338]
[1751825727362,14.85805381,152.32,152.3,2.47199338]
[1751825727564,6.5641,152.32,152.3,2.47199338]
[1751825728665,6.5638,152.33,152.31,2.47199338]
[1751825728867,8.29488352,152.32,152.31,2.47199338]
[1751825729267,8.29488352,152.32,152.31,9.03659338]
[1751825729768,8.29488352,152.32,152.31,2.47199338]
[1751825730768,14.85898352,152.32,152.31,2.47199338]
[1751825731668,14.85898352,152.32,152.3,2.47199338]
[1751825731866,6.5641,152.32,152.3,2.47199338]
[1751825732172,6.5641,152.32,152.29,6.5652]
[1751825732372,6.5641,152.32,152.3,2.47199338]
[1751825733370,8.29419529,152.31,152.3,2.47199338]
[1751825736080,10.76618867,152.31,152.25,44.54]
[1751825736276,2.47199338,152.31,152.27,2.47199338]
[1751825736478,8.29361325,152.3,152.27,2.47199338]
[1751825736774,9.03669338,152.31,152.28,2.47199338]
[1751825736972,8.29371358,152.3,152.28,2.47199338]
[1751825737278,2.47199338,152.31,152.28,2.47199338]
[1751825737479,8.29362486,152.3,152.28,2.47199338]
[1751825737681,2.47199338,152.31,152.28,2.47199338]
[1751825737979,8.29427651,152.3,152.28,2.47199338]
[1751825738180,2.47199338,152.31,152.28,2.47199338]
[1751825738482,8.29413588,152.3,152.28,2.47199338]
[1751825738679,6.565,152.3,152.28,2.47199338]
[1751825740876,6.5647,152.31,152.28,9.03779338]
[1751825741079,44.52,152.33,152.3,2.47199338]
[1751825741376,8.30318454,152.32,152.3,2.47199338]
[1751825741575,8.30318454,152.31,152.3,2.47199338]
[1751825742081,8.30313045,152.31,152.3,2.47199338]
[1751825742682,8.30313045,152.31,152.29,6.5654]
[1751825742879,8.30298083,152.3,152.28,6.5657]
[1751825743082,6.5646,152.31,152.28,6.5657]
[1751825744379,6.565,152.3,152.27,10.42676493]
[1751825744582,44.52,152.33,152.27,3.86066493]
[1751825744781,12.45747428,152.32,152.27,3.86066493]
[1751825744983,12.45747428,152.31,152.27,3.86066493]
[1751825745283,6.5652,152.3,152.27,10.42686493]
[1751825746185,6.5648,152.31,152.28,6.5657]
[1751825747285,6.565,152.3,152.27,10.42676493]
[1751825748185,6.5655,152.29,152.27,10.42676493]
[1751825748387,44.52,152.33,152.27,10.42676493]
[1751825748681,6.5652,152.3,152.27,10.42676493]
[1751825757990,6.5655,152.29,152.26,6.5665]
[1751825758196,4.16984959,152.28,152.22,3.86066493]
[1751825758393,8.03051452,152.27,152.19,6.15506493]
[1751825758591,6.5674,152.25,152.21,6.5686]
[1751825760296,8.28237164,152.24,152.21,6.5686]
[1751825760495,6.5674,152.25,152.21,6.5686]
[1751825760688,8.28275893,152.24,152.21,6.5686]
[1751825760892,6.5674,152.25,152.21,6.5686]
[1751825761090,8.2824235,152.24,152.21,6.5686]
[1751825761289,6.5674,152.25,152.21,6.5686]
[1751825763897,6.5674,152.25,152.22,6.5684]
[1751825764297,44.52,152.28,152.22,3.86066493]
[1751825764500,8.21143422,152.27,152.23,6.5677]
[1751825764799,44.52,152.28,152.24,3.86066493]
[1751825764994,6.5651,152.3,152.26,10.42696493]
[1751825767600,2.1736,152.31,152.26,3.86066493]
[1751825767801,8.21415174,152.3,152.25,6.567]
[1751825768003,8.21415174,152.29,152.25,6.567]
[1751825768201,2.1736,152.31,152.25,6.567]
[1751825768397,8.21314165,152.3,152.25,6.567]
[1751825768603,6.5659,152.28,152.25,6.567]
[1751825768905,2.1736,152.31,152.25,6.567]
[1751825769202,8.21251491,152.3,152.25,6.567]
[1751825769398,2.1736,152.31,152.25,6.567]
[1751825769603,6.5656,152.29,152.25,6.567]
[1751825774605,6.566,152.28,152.25,6.567]
[1751825784811,6.566,152.28,152.27,2.47174357]
[1751825785110,6.566,152.28,152.26,2.47174357]
[1751825785315,6.5666,152.27,152.24,6.5673]
[1751825785517,6.5666,152.27,152.24,9.03904357]
[1751825786204,6.5667,152.26,152.24,2.47174357]
[1751825786812,6.5667,152.26,152.23,6.5678]
[1751825788217,6.5667,152.26,152.22,54.97178655]
[1751825788414,3.86358655,152.27,152.2,3.86358655]
[1751825788716,3.86358655,152.25,152.19,6.5696]
[1751825788917,6.5686,152.22,152.19,6.5696]
[1751825789113,6.5686,152.22,152.18,48.40358655]
[1751825789314,6.5686,152.22,152.18,54.97348655]
[1751825789615,44.54,152.28,152.2,3.86358655]
[1751825789816,8.24084275,152.27,152.22,10.43178655]
[1751825790015,6.5671,152.26,152.22,10.43178655]
[1751825790416,6.5671,152.26,152.23,6.568]
[1751825791115,6.5663,152.27,152.24,6.5675]
[1751825792821,6.5667,152.26,152.23,6.5679]
[1751825793123,44.54,152.28,152.23,6.5679]
[1751825793321,8.19858017,152.27,152.23,6.5679]
[1751825793516,6.5664,152.27,152.23,6.5679]
[1751825795412,6.5664,152.27,152.24,6.5675]
[1751825797422,6.5664,152.27,152.23,6.5678]
[1751825797620,6.5668,152.26,152.23,6.5678]
[1751825804129,6.5665,152.27,152.24,6.5676]
[1751825805531,44.54,152.28,152.24,3.86358655]
[1751825805732,44.58,152.32,152.26,3.86358655]
[1751825805932,12.3339894,152.31,152.26,3.86358655]
[1751825806131,8.23364276,152.3,152.26,3.86358655]
[1751825806333,6.5657,152.29,152.26,10.42998655]